[Event "SVK ECo-C Extraliga 2018-19"]
[Site "Slovakia"]
[Date "2019.03.10"]
[Round "8.7"]
[White "Kusiak, Matej"]
[Black "Banas, Kamil"]
[Result "0-1"]
[ECO "C49"]
[WhiteElo "2253"]
[BlackElo "2248"]
[Annotator "NA RC"]
[PlyCount "128"]
[EventDate "2018.11.10"]
[EventType "team-tourn"]
[EventCountry "SVK"]
[SourceTitle "playchess.com"]
[Source "ChessBase"]
[SourceQuality "1"]
[WhiteTeam "Prakovce"]
[BlackTeam "Modra"]
[TimeControl "40/5400+30:1800+30"]

1. e4 {[%emt 0:00:00]} e5 {[%emt 0:00:00]} 2. Nf3 {[%emt 0:00:00]} Nf6 {[%emt 0:00:00]} 3. Nc3 {[%emt 0:00:23]} Nc6 {[%emt 0:00:00]} 4. Bb5 {[%emt 0:00:08]} Bb4 {[%emt 0:00:50]} 5. O-O {[%emt 0:01:46]} O-O {[%emt 0:06:10]} 6. d3 {[%emt 0:00:28]} d6 {[%emt 0:04:43]} 7. Bg5 {[%emt 0:05:49]} Bxc3 {[%emt 0:02:32]} 8. bxc3 {[%emt 0:00:06]} Qe7 {[%emt 0:02:52]} 9. h3 {[%emt 0:01:40]} Nd8 {[%emt 0:01:31]} 10. Nh2 {[%emt 0:01:16]} Ne6 {[%emt 0:08:18]} 11. Be3 {[%emt 0:05:09]} a5 {[%emt 0:04:25]} 12. Bc4 {[%emt 0:00:39]} Bd7 {[%emt 0:02:29]} 13. Bxe6 {[%emt 0:00:47]} Qxe6 {[%emt 0:01:33]} 14. c4 {[%emt 0:02:05]} b6 {[%emt 0:01:07]} 15. f4 {[%emt 0:00:45]} exf4 {[%emt 0:01:57]} 16. Bxf4 {[%emt 0:01:19]} Bc6 {[%emt 0:02:20]} 17. Nf3 {[%emt 0:01:07]} Bb7 {[%emt 0:09:25]} 18. Nd4 {[%emt 0:01:30]} Qd7 {[%emt 0:04:23]} 19. Nf5 {[%emt 0:02:27]} Kh8 {[%emt 0:02:18]} 20. Bd2 {[%emt 0:05:37]} Ng8 {[%emt 0:02:48]} 21. Rf4 {[%emt 0:11:37]} f6 {[%emt 0:02:05]} 22. Rg4 {[%emt 0:04:24]} Rf7 {[%emt 0:00:39]} 23. Bc3 {[%emt 0:01:58]} Qe8 {[%emt 0:02:02]} 24. Rh4 {[%emt 0:04:32]} Bc8 {[%emt 0:04:38]} 25. Qh5 {[%emt 0:01:30]} Bxf5 {[%emt 0:01:02]} 26. Qxf5 {[%emt 0:01:28]} h6 {[%emt 0:01:05]} 27. Rf1 {[%emt 0:02:46]} Qa4 {[%emt 0:04:28]} 28. Qg6 {[%emt 0:01:45]} Raf8 {[%emt 0:00:35]} 29. Bd2 {[%emt 0:23:49]} Qxc2 {[%emt 0:01:48]} 30. Be3 {[%emt 0:02:33]} Qe2 {[%emt 0:02:52]} 31. Bf4 {[%emt 0:09:59]} f5 {[%emt 0:08:33]} 32. Bc1 {[%emt 0:03:05]} Rf6 {[%emt 0:00:36]} 33. Qg3 {[%emt 0:00:39]} fxe4 {[%emt 0:00:31]} 34. Rxf6 {[%emt 0:01:44]} Rxf6 {[%emt 0:00:05]} 35. Kh2 {[%emt 0:01:09]} exd3 {[%emt 0:00:59]} 36. Rg4 {[%emt 0:01:08]} Rf7 {[%emt 0:00:46]} 37. Rd4 {[%emt 0:00:29]} Qc2 {[%emt 0:03:31]} 38. Bf4 {[%emt 0:00:40]} Ne7 {[%emt 0:05:02]} 39. Qe3 {[%emt 0:00:26]} Qe2 {[%emt 0:02:39]} 40. Rxd3 {[%emt 0:00:25]} Qxe3 {[%emt 0:00:46]} 41. Bxe3 {[%emt 0:00:30]} Nc6 {[%emt 0:01:49]} 42. Kg1 {[%emt 0:00:57]} Kg8 {[%emt 0:02:20]} 43. Bd2 {[%emt 0:00:52]} Nb4 {[%emt 0:02:48]} 44. Bxb4 {[%emt 0:04:51]} axb4 {[%emt 0:00:01]} 45. Rb3 {[%emt 0:00:14]} c5 {[%emt 0:01:21]} 46. Rd3 {[%emt 0:01:44]} Ra7 {[%emt 0:00:46]} 47. Rd2 {[%emt 0:02:00]} Kf7 {[%emt 0:00:44]} 48. Kf1 {[%emt 0:00:24]} Ke6 {[%emt 0:00:35]} 49. Re2+ {[%emt 0:00:30]} Kd7 {[%emt 0:01:02]} 50. Ke1 {[%emt 0:00:08]} Ra3 {[%emt 0:00:28]} 51. Kd1 {[%emt 0:01:56]} Kc6 {[%emt 0:00:19]} 52. Kc1 {[%emt 0:01:59]} Rc3+ {[%emt 0:00:24]} 53. Kb2 {[%emt 0:00:06]} Rxc4 {[%emt 0:00:05]} 54. Re7 {[%emt 0:00:05]} g5 {[%emt 0:00:11]} 55. Rh7 {[%emt 0:05:06]} Rf4 {[%emt 0:00:37]} 56. g4 {[%emt 0:00:58]} Rf2+ {[%emt 0:00:37]} 57. Kb1 {[%emt 0:00:09]} Rf6 {[%emt 0:00:11]} 58. Kc2 {[%emt 0:00:21]} Kb5 {[%emt 0:00:38]} 59. Rh8 {[%emt 0:00:20]} Kc4 {[%emt 0:00:19]} 60. Kd2 {[%emt 0:01:17]} Rf2+ {[%emt 0:00:56]} 61. Ke3 {[%emt 0:02:29]} Rxa2 {[%emt 0:00:17]} 62. Rxh6 {[%emt 0:00:04]} b3 {[%emt 0:00:23]} 63. Rxd6 {[%emt 0:00:06]} b2 {[%emt 0:00:10]} 64. Rxb6 {[%emt 0:00:15]} Ra3+ {[%emt 0:00:03] Kd4+} 0-1

[Event "SVK ECo-C Extraliga 2018-19"]
[Site "Slovakia"]
[Date "2019.03.10"]
[Round "8.7"]
[White "Sepesi, Samuel"]
[Black "Spacek, Oliver"]
[Result "1-0"]
[ECO "B43"]
[WhiteElo "2189"]
[BlackElo "2184"]
[Annotator "NA"]
[PlyCount "75"]
[EventDate "2018.11.10"]
[EventType "team-tourn"]
[EventCountry "SVK"]
[SourceTitle "playchess.com"]
[Source "ChessBase"]
[SourceQuality "1"]
[WhiteTeam "Snina"]
[BlackTeam "Osuske"]
[TimeControl "40/5400+30:1800+30"]

1. e4 {[%emt 0:00:00]} c5 {[%emt 0:00:42]} 2. Nf3 {[%emt 0:00:00]} a6 {[%emt 0:01:32]} 3. d4 {[%emt 0:00:00]} cxd4 {[%emt 0:00:06]} 4. Nxd4 {[%emt 0:00:05]} e6 {[%emt 0:11:43]} 5. Nc3 {[%emt 0:00:12]} b5 {[%emt 0:00:27]} 6. Bd3 {[%emt 0:00:07]} Qb6 {[%emt 0:00:36]} 7. Nf3 {[%emt 0:00:08]} Qc7 {[%emt 0:02:34]} 8. O-O {[%emt 0:00:16]} Bb7 {[%emt 0:00:19]} 9. Re1 {[%emt 0:00:16]} Nc6 {[%emt 0:02:13]} 10. e5 {[%emt 0:21:08]} Be7 {[%emt 0:28:41]} 11. Bf4 {[%emt 0:01:00]} Nh6 {[%emt 0:16:23]} 12. Qd2 {[%emt 0:21:29]} O-O-O {[%emt 0:05:12]} 13. a4 {[%emt 0:01:54]} b4 {[%emt 0:00:16]} 14. Ne4 {[%emt 0:00:18]} Nf5 {[%emt 0:03:24]} 15. Neg5 {[%emt 0:03:33]} Nh6 {[%emt 0:03:45]} 16. Rad1 {[%emt 0:11:43]} d5 {[%emt 0:02:01]} 17. exd6 {[%emt 0:00:02]} Bxd6 {[%emt 0:00:23]} 18. Bxd6 {[%emt 0:00:12]} Rxd6 {[%emt 0:00:35]} 19. Qe2 {[%emt 0:10:38]} a5 {[%emt 0:02:49]} 20. Ne4 {[%emt 0:00:23]} Rd5 {[%emt 0:01:43]} 21. c4 {[%emt 0:00:31]} Rdd8 {[%emt 0:01:23]} 22. Nc5 {[%emt 0:09:42]} Nf5 {[%emt 0:11:58]} 23. Nxe6 {[%emt 0:03:02]} fxe6 {[%emt 0:00:22]} 24. Qxe6+ {[%emt 0:00:06]} Kb8 {[%emt 0:00:04]} 25. Bxf5 {[%emt 0:01:39]} Rhe8 {[%emt 0:01:39]} 26. Qxe8 {[%emt 0:05:23]} Rxe8 {[%emt 0:00:01]} 27. Rxe8+ {[%emt 0:00:10]} Ka7 {[%emt 0:00:02]} 28. Be6 {[%emt 0:04:02]} Ne5 {[%emt 0:01:33]} 29. Nd4 {[%emt 0:00:28]} Qc5 {[%emt 0:01:31]} 30. Nb5+ {[%emt 0:01:53]} Kb6 {[%emt 0:00:21]} 31. Rd6+ {[%emt 0:00:16]} Nc6 {[%emt 0:00:06]} 32. Bd5 {[%emt 0:00:47]} b3 {[%emt 0:00:48]} 33. Rb8 {[%emt 0:01:09]} Ka6 {[%emt 0:00:40]} 34. Bxc6 {[%emt 0:01:55]} Bxc6 {[%emt 0:00:35]} 35. Rc8 {[%emt 0:00:56]} Qg5 {[%emt 0:00:29]} 36. Rdxc6+ {[%emt 0:00:11]} Kb7 {[%emt 0:00:06]} 37. R6c7+ {[%emt 0:00:12]} Ka6 {[%emt 0:00:16]} 38. Ra8+ {[%emt 0:00:14]} 1-0

[Event "SVK ECo-C Extraliga 2018-19"]
[Site "Slovakia"]
[Date "2019.03.10"]
[Round "8.7"]
[White "Pallag, Gergely"]
[Black "Harasta, Igor"]
[Result "1/2-1/2"]
[ECO "A45"]
[WhiteElo "2005"]
[BlackElo "2092"]
[Annotator "NA"]
[PlyCount "94"]
[EventDate "2018.11.10"]
[EventType "team-tourn"]
[EventCountry "SVK"]
[SourceTitle "playchess.com"]
[Source "ChessBase"]
[SourceQuality "1"]
[WhiteTeam "Komarno"]
[BlackTeam "Zilina"]
[TimeControl "40/5400+30:1800+30"]

1. d4 {[%emt 0:00:00]} Nf6 {[%emt 0:00:00]} 2. Bg5 {[%emt 0:00:00]} g6 {[%emt 0:01:08]} 3. Bxf6 {[%emt 0:00:00]} exf6 {[%emt 0:00:03]} 4. e3 {[%emt 0:00:59]} Bg7 {[%emt 0:00:45]} 5. g3 {[%emt 0:01:04]} O-O {[%emt 0:00:50]} 6. Bg2 {[%emt 0:00:12]} d6 {[%emt 0:01:22]} 7. c4 {[%emt 0:01:11]} c6 {[%emt 0:02:46]} 8. Ne2 {[%emt 0:00:32]} Nd7 {[%emt 0:02:23]} 9. O-O {[%emt 0:01:31]} f5 {[%emt 0:01:04]} 10. Nbc3 {[%emt 0:00:32]} Re8 {[%emt 0:01:13]} 11. Qd3 {[%emt 0:00:55]} Nf6 {[%emt 0:01:51]} 12. b4 {[%emt 0:00:32]} Qe7 {[%emt 0:01:48]} 13. b5 {[%emt 0:06:38]} Ne4 {[%emt 0:11:08]} 14. Rab1 {[%emt 0:06:57]} h5 {[%emt 0:15:31]} 15. Rb3 {[%emt 0:08:04]} Bh6 {[%emt 0:02:05]} 16. Nf4 {[%emt 0:49:37]} h4 {[%emt 0:07:35]} 17. a4 {[%emt 0:06:01]} hxg3 {[%emt 0:31:01]} 18. hxg3 {[%emt 0:00:51]} Kg7 {[%emt 0:01:13]} 19. Rfb1 {[%emt 0:04:01]} g5 {[%emt 0:01:57]} 20. Nh3 {[%emt 0:01:33]} Qf6 {[%emt 0:05:13]} 21. a5 {[%emt 0:06:04]} Nxc3 {[%emt 0:05:28]} 22. Qxc3 {[%emt 0:01:15]} f4 {[%emt 0:01:35]} 23. exf4 {[%emt 0:01:32]} gxf4 {[%emt 0:00:52]} 24. Nxf4 {[%emt 0:01:03]} Bxf4 {[%emt 0:00:09]} 25. gxf4 {[%emt 0:00:08]} Bf5 {[%emt 0:01:06]} 26. Rc1 {[%emt 0:01:09]} Rg8 {[%emt 0:01:12]} 27. a6 {[%emt 0:00:33]} bxa6 {[%emt 0:00:28]} 28. bxc6 {[%emt 0:00:15]} Rac8 {[%emt 0:00:49]} 29. d5 {[%emt 0:00:32]} Qxc3 {[%emt 0:00:57]} 30. Rcxc3 {[%emt 0:00:09]} Kf6 {[%emt 0:00:50]} 31. Rg3 {[%emt 0:00:42]} Rge8 {[%emt 0:00:13]} 32. Rge3 {[%emt 0:00:35]} Rg8 {[%emt 0:00:20]} 33. Kf1 {[%emt 0:00:29]} Rg4 {[%emt 0:00:14]} 34. Bh3 {[%emt 0:00:47]} Rxf4 {[%emt 0:00:10]} 35. Bxf5 {[%emt 0:00:12]} Kxf5 {[%emt 0:00:51]} 36. Rf3 {[%emt 0:00:41]} Rxf3 {[%emt 0:00:14]} 37. Rxf3+ {[%emt 0:00:04]} Ke4 {[%emt 0:00:07]} 38. Rxf7 {[%emt 0:00:35]} Kd4 {[%emt 0:01:10]} 39. Rxa7 {[%emt 0:00:55]} Kxc4 {[%emt 0:00:09]} 40. Rxa6 {[%emt 0:00:38]} Kxd5 {[%emt 0:00:07]} 41. Ke2 {[%emt 0:05:04]} Rxc6 {[%emt 0:01:16]} 42. Rxc6 {[%emt 0:13:20]} Kxc6 {[%emt 0:01:03]} 43. Kd3 {[%emt 0:00:30]} Kd5 {[%emt 0:00:17]} 44. f4 {[%emt 0:00:26]} Ke6 {[%emt 0:00:07]} 45. Kd4 {[%emt 0:00:24]} Kf5 {[%emt 0:00:15]} 46. Kd5 {[%emt 0:00:13]} Kxf4 {[%emt 0:00:06]} 47. Kxd6 {[%emt 0:00:04]} Ke4 {Ke5+} 1/2-1/2

[Event "SVK ECo-C Extraliga 2018-19"]
[Site "Slovakia"]
[Date "2019.03.10"]
[Round "8.8"]
[White "Federic, Jozef"]
[Black "Danada, Tomas"]
[Result "0-1"]
[ECO "D04"]
[WhiteElo "2207"]
[BlackElo "2221"]
[Annotator "NA RC"]
[PlyCount "122"]
[EventDate "2018.11.10"]
[EventType "team-tourn"]
[EventCountry "SVK"]
[SourceTitle "playchess.com"]
[Source "ChessBase"]
[SourceQuality "1"]
[WhiteTeam "Modra"]
[BlackTeam "Prakovce"]
[TimeControl "40/5400+30:1800+30"]

1. d4 {[%emt 0:00:00]} Nf6 {[%emt 0:00:00]} 2. Nf3 {[%emt 0:00:00]} d5 {[%emt 0:00:00]} 3. e3 {[%emt 0:00:34]} c5 {[%emt 0:00:02]} 4. Be2 {[%emt 0:02:40]} Nc6 {[%emt 0:00:37]} 5. O-O {[%emt 0:00:33]} cxd4 {[%emt 0:09:14]} 6. exd4 {[%emt 0:00:51]} Qc7 {[%emt 0:03:25] B13: Caro-Kann: Exchange Variation and Panov-Botvinnik Attack} (6... g6 7. c3 Bg7 8. Bf4 O-O 9. Nbd2 h6 10. Ne5 Nd7 11. Nxd7 Qxd7 12. Nb3 b6 13. a4 a5 14. Re1 Ba6 15. Bxa6 Rxa6 16. Nc1 Re8 17. Nd3 {1-0 (37) Maghsoodloo,P (2573)-Mousavi,S (2424) Arak 2016}) 7. c4 {[%emt 0:05:45]} dxc4 $146 {[%emt 0:11:35]} ({Predecessor:} 7... Bf5 8. cxd5 Nxd5 9. a3 a6 10. Nc3 Rd8 11. Nxd5 Rxd5 12. Bc4 Rd8 13. Be3 e6 14. Rc1 {½-½ (40) Moser,M-Preindl,F (1745) Wattens 1997}) 8. Na3 {[%emt 0:04:03]} Bg4 {[%emt 0:10:37]} 9. Be3 {[%emt 0:07:46]} e6 {[%emt 0:06:11]} 10. Nxc4 {[%emt 0:01:09]} Bd6 {[%emt 0:02:09]} 11. h3 {[%emt 0:02:29]} Bh5 {[%emt 0:08:01]} 12. Rc1 {[%emt 0:04:10]} Nd5 {[%emt 0:01:46]} 13. Nce5 {[%emt 0:11:18]} Bxe5 {[%emt 0:04:46]} 14. Nxe5 {[%emt 0:00:39]} Bxe2 {[%emt 0:00:07]} 15. Qxe2 {[%emt 0:00:04]} O-O {[%emt 0:00:25]} 16. Nxc6 {[%emt 0:02:18]} bxc6 {[%emt 0:00:09]} 17. Rc5 {[%emt 0:00:28]} Rab8 {[%emt 0:03:14]} 18. Rfc1 {[%emt 0:02:33]} Rb6 {[%emt 0:01:49]} 19. b3 {[%emt 0:03:16]} Qb7 {[%emt 0:01:57]} 20. Bd2 {[%emt 0:01:54]} Nb4 {[%emt 0:14:56]} 21. Be1 {[%emt 0:07:12]} Rc8 {[%emt 0:05:37]} 22. R1c4 {[%emt 0:10:20]} h6 {[%emt 0:01:09]} 23. Qd2 {[%emt 0:03:05]} Nd5 {[%emt 0:01:47]} 24. Qc2 {[%emt 0:00:36]} Ne7 {[%emt 0:02:45]} 25. Bd2 {[%emt 0:02:36]} Rb5 {[%emt 0:00:52]} 26. Bf4 {[%emt 0:03:33]} Rxc5 {[%emt 0:00:36]} 27. dxc5 {[%emt 0:04:37]} Rd8 {[%emt 0:00:37]} 28. Bc1 {[%emt 0:08:13]} Rd5 {[%emt 0:00:38]} 29. Bb2 {[%emt 0:00:27]} Qd7 {[%emt 0:00:46]} 30. Qc3 {[%emt 0:00:35]} e5 {[%emt 0:01:05]} 31. f4 {[%emt 0:01:12]} Ng6 {[%emt 0:01:01]} 32. fxe5 {[%emt 0:00:37]} Nxe5 {[%emt 0:00:32]} 33. Rd4 {[%emt 0:02:32]} Rxd4 {[%emt 0:01:59]} 34. Qxd4 {[%emt 0:00:02]} Qxd4+ {[%emt 0:00:08]} 35. Bxd4 {[%emt 0:00:03]} Nd3 {[%emt 0:00:16]} 36. Be3 {[%emt 0:01:35]} f5 {[%emt 0:01:18]} 37. Kf1 {[%emt 0:00:29]} Kf7 {[%emt 0:01:02]} 38. Ke2 {[%emt 0:00:28]} Nb4 {[%emt 0:00:15]} 39. Bd2 {[%emt 0:01:02]} Na6 {[%emt 0:01:21]} 40. b4 {[%emt 0:01:22]} Ke6 {[%emt 0:00:06]} 41. Kd3 {[%emt 0:33:24]} Kd5 {[%emt 0:30:41]} 42. a3 {[%emt 0:01:52]} Nc7 {[%emt 0:00:00]} 43. Bc1 {[%emt 0:00:00]} a5 {[%emt 0:00:00]} 44. Be3 {[%emt 0:00:00]} a4 {[%emt 0:00:00]} 45. Bc1 {[%emt 0:00:00]} Ne6 {[%emt 0:00:00]} 46. Bd2 {[%emt 0:00:00]} f4 {[%emt 0:00:00]} 47. h4 {[%emt 0:00:00]} g5 {[%emt 0:00:00]} 48. hxg5 {[%emt 0:00:00]} hxg5 {[%emt 0:00:00]} 49. Bc3 {[%emt 0:00:00]} g4 {[%emt 0:00:00]} 50. Bd2 {[%emt 0:00:00]} g3 $19 {[%emt 0:00:00]} 51. Ke2 {[%emt 0:00:00]} Nd4+ {[%emt 0:00:00]} 52. Kf1 {[%emt 0:00:00]} Ke4 {[%emt 0:00:00]} 53. Bc1 {[%emt 0:00:00]} f3 {[%emt 0:00:11]} 54. Bb2 {[%emt 0:00:00]} Ne2 {[%emt 0:02:32]} 55. b5 {[%emt 0:00:00]} Nf4 {[%emt 0:00:37]} 56. gxf3+ {[%emt 0:00:14]} Kxf3 {[%emt 0:00:02]} 57. Bd4 {[%emt 0:00:11]} g2+ {[%emt 0:00:57]} 58. Ke1 {[%emt 0:00:10]} Nd3+ {[%emt 0:01:04]} 59. Kd2 {[%emt 0:00:07]} Nf2 {[%emt 0:00:06]} 60. bxc6 {[%emt 0:00:25]} g1=Q {[%emt 0:00:08]} 61. c7 {[%emt 0:00:21]} Qd1+ {[%emt 0:00:42]} 0-1

[Event "SVK ECo-C Extraliga 2018-19"]
[Site "Slovakia"]
[Date "2019.03.10"]
[Round "8.8"]
[White "Gasa, Patrik"]
[Black "Fiacan, Robert"]
[Result "1-0"]
[ECO "A80"]
[WhiteElo "2176"]
[BlackElo "2242"]
[Annotator "NA RC"]
[PlyCount "25"]
[EventDate "2018.11.10"]
[EventType "team-tourn"]
[EventCountry "SVK"]
[SourceTitle "playchess.com"]
[Source "ChessBase"]
[SourceQuality "1"]
[WhiteTeam "Osuske"]
[BlackTeam "Snina"]
[TimeControl "40/5400+30:1800+30"]

1. d4 f5 2. h3 Nf6 3. g4 fxg4 4. hxg4 Nxg4 5. Qd3 g6 6. Rxh7 Rxh7 7. Qxg6+ Rf7 8. Qxg4 d5 9. Qh5 Qd6 10. Nf3 Qf6 11. Be3 Qf5 12. Ng5 Be6 13. Bh3 1-0

[Event "SVK ECo-C Extraliga 2018-19"]
[Site "Slovakia"]
[Date "2019.03.10"]
[Round "8.8"]
[White "Matejov, Jaroslav"]
[Black "Viczencz, Peter"]
[Result "0-1"]
[ECO "B41"]
[WhiteElo "2054"]
[BlackElo "1979"]
[Annotator "NA"]
[PlyCount "72"]
[EventDate "2018.11.10"]
[EventType "team-tourn"]
[EventCountry "SVK"]
[SourceTitle "playchess.com"]
[Source "ChessBase"]
[SourceQuality "1"]
[WhiteTeam "Zilina"]
[BlackTeam "Komarno"]
[TimeControl "40/5400+30:1800+30"]

1. e4 {[%emt 0:00:00]} e6 {[%emt 0:00:00]} 2. d4 {[%emt 0:01:06]} c5 {[%emt 0:00:05]} 3. Nf3 {[%emt 0:03:07]} cxd4 {[%emt 0:01:09]} 4. Nxd4 {[%emt 0:00:25]} a6 {[%emt 0:00:05]} 5. c4 {[%emt 0:01:37]} Nf6 {[%emt 0:00:30]} 6. Bd3 {[%emt 0:03:55]} Be7 {[%emt 0:03:17]} 7. O-O {[%emt 0:00:40]} Qc7 {[%emt 0:00:12]} 8. Nc3 {[%emt 0:02:48]} O-O {[%emt 0:00:45]} 9. Be3 {[%emt 0:02:28]} d6 {[%emt 0:01:16]} 10. Rc1 {[%emt 0:01:31]} Nbd7 {[%emt 0:00:41]} 11. f4 {[%emt 0:15:27]} b6 {[%emt 0:04:01]} 12. Qe2 {[%emt 0:05:55]} Bb7 {[%emt 0:00:42]} 13. Bb1 {[%emt 0:08:17]} Rac8 {[%emt 0:01:54]} 14. b3 {[%emt 0:00:30]} Nc5 {[%emt 0:01:19]} 15. Bd2 {[%emt 0:02:59]} Rfd8 {[%emt 0:10:25]} 16. Rf3 {[%emt 0:04:00]} d5 {[%emt 0:18:21]} 17. cxd5 {[%emt 0:07:04]} exd5 {[%emt 0:02:15]} 18. e5 {[%emt 0:12:12]} Nfe4 {[%emt 0:03:04]} 19. Rh3 {[%emt 0:06:04]} g6 {[%emt 0:01:43]} 20. Nxe4 {[%emt 0:06:39]} dxe4 {[%emt 0:00:34]} 21. Be3 {[%emt 0:00:46]} Qb8 {[%emt 0:05:12]} 22. Nf5 {[%emt 0:03:48]} gxf5 {[%emt 0:14:38]} 23. Qh5 {[%emt 0:00:12]} Kf8 {[%emt 0:00:15]} 24. Qxh7 {[%emt 0:00:13]} Ke8 {[%emt 0:00:25]} 25. Qxf5 {[%emt 0:00:11]} Ne6 {[%emt 0:03:05]} 26. Re1 {[%emt 0:05:48]} Qc7 {[%emt 0:05:00]} 27. Rh8+ {[%emt 0:02:15]} Nf8 {[%emt 0:01:58]} 28. h4 {[%emt 0:01:48]} Qc3 {[%emt 0:02:52]} 29. Kf1 {[%emt 0:00:49]} a5 {[%emt 0:01:03]} 30. Bxe4 {[%emt 0:00:38]} Ba6+ {[%emt 0:01:44]} 31. Kf2 {[%emt 0:00:35]} Rd2+ {[%emt 0:00:42]} 32. Kf3 {[%emt 0:00:38]} Rxa2 {[%emt 0:03:13]} 33. Rc1 {[%emt 0:00:34]} Be2+ {[%emt 0:00:16]} 34. Kg3 {[%emt 0:01:23]} Qxe3+ {[%emt 0:00:07]} 35. Bf3 {[%emt 0:00:01]} Rxc1 {[%emt 0:00:36]} 36. e6 Qxe6 {[%emt 0:01:08]} 0-1

[Event "SVK ECo-C Extraliga 2018-19"]
[Site "Slovakia"]
[Date "2019.04.12"]
[Round "9.1"]
[White "Papp, Gabor"]
[Black "Vajda, Levente"]
[Result "1/2-1/2"]
[ECO "C84"]
[WhiteElo "2598"]
[BlackElo "2535"]
[Annotator "ChessBase"]
[PlyCount "47"]
[EventDate "2018.11.10"]
[EventType "team-tourn"]
[EventCountry "SVK"]
[SourceTitle "playchess.com"]
[Source "ChessBase"]
[SourceQuality "1"]
[WhiteTeam "Slovan"]
[BlackTeam "Streda"]
[TimeControl "40/5400+30:1800+30"]

1. e4 {[%emt 0:00:00]} e5 {[%emt 0:00:00]} 2. Nf3 {[%emt 0:00:00]} Nc6 {[%emt 0:00:00]} 3. Bb5 {[%emt 0:00:00]} a6 {[%emt 0:00:00]} 4. Ba4 {[%emt 0:00:00]} Nf6 {[%emt 0:00:00]} 5. O-O {[%emt 0:00:02]} Be7 {[%emt 0:00:00]} 6. d3 {[%emt 0:00:49]} d6 {[%emt 0:01:28]} 7. c3 {[%emt 0:00:14]} O-O {[%emt 0:00:14]} 8. Re1 {[%emt 0:00:22]} b5 {[%emt 0:01:12]} 9. Bc2 {[%emt 0:00:08]} Re8 {[%emt 0:06:40]} 10. Nbd2 {[%emt 0:01:06]} Bf8 {[%emt 0:00:08]} 11. Nf1 {[%emt 0:00:43]} h6 {[%emt 0:00:33]} 12. Ng3 {[%emt 0:00:56]} g6 {[%emt 0:07:45]} 13. d4 {[%emt 0:01:14]} Bg7 {[%emt 0:01:33]} 14. d5 {[%emt 0:01:44]} Ne7 {[%emt 0:01:57]} 15. a4 {[%emt 0:03:21]} Bb7 {[%emt 0:04:37]} 16. b3 {[%emt 0:04:01]} c6 {[%emt 0:02:35]} 17. c4 {[%emt 0:00:09]} b4 {[%emt 0:00:28]} 18. dxc6 {[%emt 0:14:59]} Nxc6 {[%emt 0:01:11]} 19. h3 {[%emt 0:00:31]} Re6 {[%emt 0:13:41]} 20. Be3 {[%emt 0:03:35]} Nd7 {[%emt 0:02:53]} 21. Qd2 {[%emt 0:02:45]} Qf8 {[%emt 0:00:31]} 22. Rad1 {[%emt 0:03:24]} a5 {[%emt 0:01:20]} 23. Qc1 {[%emt 0:10:08]} Nc5 {[%emt 0:05:19]} 24. Re2 {[%emt 0:04:14]} 1/2-1/2

[Event "SVK ECo-C Extraliga 2018-19"]
[Site "Slovakia"]
[Date "2019.04.12"]
[Round "9.1"]
[White "Sipos, Istvan"]
[Black "Aczel, Gergely"]
[Result "0-1"]
[ECO "D55"]
[WhiteElo "2472"]
[BlackElo "2542"]
[Annotator "ChessBase"]
[PlyCount "74"]
[EventDate "2018.11.10"]
[EventType "team-tourn"]
[EventCountry "SVK"]
[SourceTitle "playchess.com"]
[Source "ChessBase"]
[SourceQuality "1"]
[WhiteTeam "Komarno"]
[BlackTeam "Podhajska"]
[TimeControl "40/5400+30:1800+30"]

1. c4 {[%emt 0:00:00]} e6 {[%emt 0:00:00]} 2. Nf3 {[%emt 0:00:02]} d5 {[%emt 0:00:00]} 3. d4 {[%emt 0:00:55]} Nf6 {[%emt 0:00:00]} 4. Bg5 {[%emt 0:01:25]} Be7 {[%emt 0:00:00]} 5. Nc3 {[%emt 0:00:43]} O-O {[%emt 0:00:01]} 6. e3 {[%emt 0:00:19]} h6 {[%emt 0:00:03]} 7. Bxf6 {[%emt 0:04:11]} Bxf6 {[%emt 0:00:02]} 8. Rc1 {[%emt 0:00:13]} c6 {[%emt 0:07:08]} 9. g4 {[%emt 0:11:11]} g6 {[%emt 0:08:20]} 10. h4 {[%emt 0:00:48]} Bg7 {[%emt 0:00:04]} 11. Bd3 {[%emt 0:03:12]} dxc4 {[%emt 0:00:28]} 12. Bxc4 {[%emt 0:00:38]} Nd7 {[%emt 0:19:58]} 13. Qc2 {[%emt 0:24:06]} c5 {[%emt 0:03:03]} 14. dxc5 {[%emt 0:06:11]} Nxc5 {[%emt 0:00:13]} 15. h5 {[%emt 0:04:45]} g5 {[%emt 0:00:50]} 16. b4 {[%emt 0:01:46]} Nd7 {[%emt 0:04:06]} 17. Ke2 {[%emt 0:05:04]} Qe7 {[%emt 0:02:16]} 18. a3 {[%emt 0:13:20]} a5 {[%emt 0:01:09]} 19. Qb3 {[%emt 0:08:46]} Nb6 {[%emt 0:06:43]} 20. Bd3 {[%emt 0:01:57]} Nd5 {[%emt 0:04:55]} 21. Nxd5 {[%emt 0:00:26]} exd5 {[%emt 0:00:02]} 22. Rhg1 {[%emt 0:03:01]} d4 {[%emt 0:12:37]} 23. Bf5 {[%emt 0:01:59]} Bxf5 {[%emt 0:04:29]} 24. gxf5 {[%emt 0:00:03]} axb4 {[%emt 0:00:48]} 25. axb4 {[%emt 0:00:41]} Qe4 {[%emt 0:10:22]} 26. Nd2 {[%emt 0:06:19]} Qxf5 {[%emt 0:02:04]} 27. e4 {[%emt 0:00:06]} Rfe8 {[%emt 0:01:22]} 28. Qd3 {[%emt 0:00:55]} Ra2 {[%emt 0:00:44]} 29. Rc2 {[%emt 0:00:45]} Rxc2 {[%emt 0:00:38]} 30. Qxc2 {[%emt 0:00:02]} Qh3 {[%emt 0:00:49]} 31. Rg3 {[%emt 0:01:08]} Qxh5+ {[%emt 0:00:09]} 32. Kd3 {[%emt 0:00:15]} Be5 {[%emt 0:01:29]} 33. Rg1 {[%emt 0:00:45]} Qh3+ {[%emt 0:03:17]} 34. Ke2 {[%emt 0:00:02]} Bf4 {[%emt 0:00:09]} 35. Nf3 {[%emt 0:00:09]} Rc8 {[%emt 0:02:04]} 36. Qd1 {[%emt 0:00:41]} Rc3 {[%emt 0:00:44]} 37. Nxd4 {[%emt 0:00:57]} Qh5+ {[%emt 0:00:40]} 0-1

[Event "SVK ECo-C Extraliga 2018-19"]
[Site "Slovakia"]
[Date "2019.04.12"]
[Round "9.2"]
[White "Miton, Kamil"]
[Black "Ponizil, Cyril"]
[Result "1/2-1/2"]
[ECO "A04"]
[WhiteElo "2593"]
[BlackElo "2501"]
[Annotator "ChessBase"]
[PlyCount "39"]
[EventDate "2018.11.10"]
[EventType "team-tourn"]
[EventCountry "SVK"]
[SourceTitle "playchess.com"]
[Source "ChessBase"]
[SourceQuality "1"]
[WhiteTeam "Dunajov"]
[BlackTeam "Dubnica"]
[TimeControl "40/5400+30:1800+30"]

1. Nf3 {[%emt 0:00:00]} c5 {[%emt 0:00:00]} 2. b3 {[%emt 0:01:21]} Nf6 {[%emt 0:00:44]} 3. Bb2 {[%emt 0:00:27]} e6 {[%emt 0:00:11]} 4. c4 {[%emt 0:05:11]} b6 {[%emt 0:00:09]} 5. g3 {[%emt 0:00:47]} Bb7 {[%emt 0:00:06]} 6. Bg2 {[%emt 0:00:05]} Be7 {[%emt 0:00:12]} 7. O-O {[%emt 0:00:29]} O-O {[%emt 0:00:06]} 8. e3 {[%emt 0:04:38]} d5 {[%emt 0:01:42]} 9. Nc3 {[%emt 0:00:58]} Nbd7 {[%emt 0:03:23]} 10. Qe2 {[%emt 0:07:03]} Qc7 {[%emt 0:02:23]} 11. Rac1 {[%emt 0:09:15]} Rad8 {[%emt 0:00:22]} 12. cxd5 {[%emt 0:26:29]} Nxd5 {[%emt 0:00:46]} 13. d4 {[%emt 0:00:55]} Nxc3 {[%emt 0:02:33]} 14. Bxc3 {[%emt 0:00:07]} Qb8 {[%emt 0:04:31]} 15. Rfd1 {[%emt 0:09:26]} Qa8 {[%emt 0:01:20]} 16. Ne1 {[%emt 0:00:20]} Bf6 {[%emt 0:04:07]} 17. Bxb7 {[%emt 0:04:32]} Qxb7 {[%emt 0:00:21]} 18. dxc5 {[%emt 0:02:21]} Bxc3 {[%emt 0:01:30]} 19. Rxc3 {[%emt 0:00:41]} Nxc5 {[%emt 0:00:09]} 20. Rcc1 {[%emt 0:02:01]} 1/2-1/2